bitfinex/quotes_SOLUSD_20250102
["timestamp","ask_amount","ask_price","bid_price","bid_amount"]
[1735855740790,9.03932413,206.76,206.73,30.0]
[1735855741613,9.03932413,206.77,206.73,30.0]
[1735855742219,9.03932413,206.76,206.73,30.0]
[1735855745519,12.0886,206.81,206.73,30.0]
[1735855745726,9.03932413,206.77,206.73,30.0]
[1735855749301,29.03932413,206.78,206.73,30.0]
[1735855767239,9.03932413,206.78,206.73,30.0]
[1735855767436,1.5261,206.89,206.76,39.03932413]
[1735855767741,9.03932413,206.83,206.77,9.03932413]
[1735855768352,9.03932413,206.83,206.76,39.03932413]
[1735855768655,9.03932413,206.82,206.76,30.0]
[1735855770247,9.03932413,206.82,206.77,23.776884]
[1735855774053,9.03932413,206.82,206.76,30.0]
[1735855774246,9.03932413,206.81,206.76,30.0]
[1735855779257,9.03932413,206.82,206.76,30.0]
[1735855782857,9.03932413,206.81,206.76,30.0]
[1735855783054,9.03932413,206.77,206.73,7.60151006]
[1735855783377,9.03932413,206.74,206.73,7.60151006]
[1735855784251,9.03932413,206.74,206.7,43.68061006]
[1735855785658,9.03932413,206.74,206.7,36.0791]
[1735855787352,9.03932413,206.75,206.7,36.0791]
[1735855790161,9.03932413,206.76,206.7,36.0791]
[1735855790455,20.0,206.79,206.73,30.0]
[1735855790640,20.0,206.79,206.74,9.03932413]
[1735855791252,20.0,206.79,206.73,39.03932413]
[1735855793260,29.03932413,206.79,206.73,39.03932413]
[1735855794377,29.03932413,206.79,206.73,30.0]
[1735855799379,29.03932413,206.79,206.7,13.68061006]
[1735855799380,0.12549,206.78,206.7,7.60151006]
[1735855799544,9.03932413,206.71,206.7,7.60151006]
[1735855799972,9.03932413,206.72,206.7,7.60151006]
[1735855800172,9.03932413,206.71,206.68,30.0]
[1735855800669,9.03932413,206.69,206.67,7.60151006]
[1735855800973,9.03932413,206.68,206.66,7.60151006]
[1735855801375,9.03932413,206.67,206.66,7.60151006]
[1735855801977,9.03932413,206.67,206.62,30.0]
[1735855802173,9.03932413,206.65,206.62,30.0]
[1735855802347,9.03932413,206.66,206.62,30.0]
[1735855804254,9.03932413,206.66,206.6,23.776884]
[1735855804567,9.03932413,206.65,206.6,23.776884]
[1735855804973,36.15729652,206.7,206.58,30.40604025]
[1735855804974,9.03932413,206.62,206.58,30.40604025]
[1735855805276,9.03932413,206.61,206.58,30.40604025]
[1735855805481,9.03932413,206.6,206.58,30.40604025]
[1735855806052,1.5089,206.67,206.53,71.40674742]
[1735855806053,9.03932413,206.59,206.53,1.5501]
[1735855806253,9.03932413,206.58,206.53,1.5501]
[1735855806472,9.03932413,206.58,206.52,37.60151006]
[1735855807166,9.03932413,206.58,206.52,30.0]
[1735855807360,9.03932413,206.57,206.52,30.0]
[1735855809376,9.03932413,206.56,206.52,30.0]
[1735855809576,12.1006,206.61,206.49,30.0]
[1735855809577,9.03932413,206.53,206.49,30.0]
[1735855809786,20.0,206.57,206.46,30.0]
[1735855809787,9.03932413,206.5,206.46,30.0]
[1735855809983,20.0,206.57,206.46,30.0]
[1735855809984,9.03932413,206.49,206.46,30.0]
[1735855810973,9.03932413,206.49,206.43,30.0]
[1735855811278,9.03932413,206.48,206.41,9.03932413]
[1735855811470,9.03932413,206.47,206.4,39.03932413]
[1735855811678,9.03932413,206.47,206.41,23.776884]
[1735855811886,9.03932413,206.48,206.44,30.0]
[1735855812076,1.6406,206.58,206.46,9.03932413]
[1735855812253,9.03932413,206.53,206.45,32.81620813]
[1735855812452,9.03932413,206.53,206.46,9.03932413]
[1735855812688,9.03932413,206.52,206.45,32.81620813]
[1735855812985,9.03932413,206.51,206.45,23.776884]
[1735855813167,9.03932413,206.49,206.42,9.03932413]
[1735855813481,9.03932413,206.48,206.41,39.03932413]
[1735855813699,9.03932413,206.48,206.42,23.776884]
[1735855814556,9.03932413,206.47,206.42,23.776884]
[1735855817453,9.03932413,206.48,206.42,23.776884]
[1735855823489,9.03932413,206.49,206.42,32.81620813]
[1735855825378,9.03932413,206.49,206.42,23.776884]
[1735855825990,9.03932413,206.5,206.44,30.0]
[1735855826190,9.03932413,206.51,206.44,39.03932413]
[1735855826800,9.03932413,206.52,206.44,39.03932413]
[1735855827596,9.03932413,206.52,206.45,9.03932413]
[1735855827988,9.03932413,206.52,206.44,30.0]
[1735855828188,9.03932413,206.48,206.41,30.0]
[1735855828375,20.0,206.53,206.41,30.0]
[1735855828581,9.03932413,206.47,206.41,30.0]
[1735855829067,9.03932413,206.47,206.39,6.5362]
[1735855829267,9.03932413,206.45,206.39,6.5362]
[1735855830893,9.03932413,206.44,206.39,6.5362]
[1735855831386,9.03932413,206.42,206.38,30.0]
[1735855831861,9.03932413,206.42,206.36,23.776884]
[1735855833092,9.03932413,206.41,206.35,167.9]
[1735855833293,9.03932413,206.37,206.29,30.0]
[1735855833471,9.03932413,206.35,206.29,30.0]
[1735855833791,20.0,206.38,206.32,30.0]
[1735855833990,29.03932413,206.38,206.32,30.0]
[1735855834497,9.03932413,206.35,206.28,30.0]
[1735855835498,9.03932413,206.34,206.28,30.0]
[1735855836676,9.03932413,206.33,206.25,37.6711]
[1735855836876,9.03932413,206.33,206.25,46.71042413]
[1735855837200,9.03932413,206.32,206.26,23.776884]
[1735855837400,9.03932413,206.33,206.26,23.776884]
[1735855837704,9.03932413,206.33,206.28,30.0]
[1735855837907,9.03932413,206.36,206.29,9.03932413]
[1735855838411,9.03932413,206.36,206.28,30.0]
[1735855838606,9.03932413,206.36,206.29,9.03932413]
[1735855839085,9.03932413,206.35,206.28,39.03932413]
[1735855839281,9.03932413,206.34,206.28,30.0]
[1735855839492,9.03932413,206.33,206.28,30.0]
[1735855840197,9.03932413,206.33,206.26,9.03932413]
[1735855841478,32.1136,206.38,206.25,30.0]
[1735855841479,9.03932413,206.31,206.25,30.0]
[1735855843224,9.03932413,206.3,206.25,30.0]
[1735855844082,12.1166,206.33,206.22,30.0]
[1735855844287,9.03932413,206.29,206.22,39.03932413]
[1735855845918,9.03932413,206.3,206.23,9.03932413]
[1735855847326,12.1166,206.33,206.25,39.03932413]
[1735855847495,9.03932413,206.32,206.25,39.03932413]
[1735855847697,9.03932413,206.31,206.25,30.0]
[1735855848326,9.03932413,206.3,206.22,30.0]
[1735855848504,9.03932413,206.29,206.22,39.03932413]
[1735855848715,9.03932413,206.3,206.23,9.03932413]
[1735855849798,9.03932413,206.31,206.24,9.03932413]
[1735855851025,8.97921852,206.31,206.24,9.03932413]
[1735855851217,8.97921852,206.31,206.22,30.0]
[1735855851424,8.97921852,206.31,206.23,9.03932413]
[1735855852525,9.03932413,206.29,206.22,30.0]
[1735855852825,9.03932413,206.29,206.21,9.03932413]
[1735855853211,9.03932413,206.29,206.21,30.0]
[1735855853528,9.03932413,206.28,206.21,30.0]
[1735855854225,12.1166,206.33,206.21,39.03932413]
[1735855854409,9.03932413,206.28,206.21,39.03932413]
[1735855854605,9.03932413,206.29,206.21,39.03932413]
[1735855855029,12.1166,206.33,206.23,9.03932413]
[1735855855203,9.03932413,206.31,206.24,30.0]
[1735855855736,9.03932413,206.29,206.21,39.03932413]
[1735855856027,9.03932413,206.3,206.21,39.03932413]
[1735855857003,9.03932413,206.3,206.23,9.03932413]
[1735855857204,9.03932413,206.32,206.23,9.03932413]
[1735855857632,12.1166,206.33,206.24,30.0]
[1735855857804,9.03932413,206.32,206.24,30.0]
[1735855860229,9.03932413,206.3,206.24,30.0]
[1735855860543,9.03932413,206.3,206.21,39.03932413]
[1735855860702,12.1166,206.33,206.21,30.0]
[1735855860703,9.03932413,206.28,206.21,30.0]
[1735855860910,9.03932413,206.29,206.21,39.03932413]
[1735855861103,9.03932413,206.31,206.24,30.0]
[1735855864545,8.1675,206.34,206.24,30.0]
[1735855864546,1.6137,206.34,206.24,30.0]
[1735855864830,9.03932413,206.34,206.27,39.03932413]
[1735855865238,9.03932413,206.33,206.27,30.0]
[1735855865416,9.03932413,206.32,206.27,30.0]
[1735855866135,9.03932413,206.31,206.27,30.0]
[1735855866358,9.03932413,206.31,206.24,39.03932413]
[1735855870020,9.03932413,206.32,206.24,39.03932413]
[1735855874535,9.03932413,206.3,206.24,30.0]
[1735855875321,9.03932413,206.3,206.21,30.0]
[1735855875322,9.03932413,206.27,206.21,30.0]
[1735855877948,9.03932413,206.28,206.21,39.03932413]
[1735855878149,9.03932413,206.28,206.21,30.0]
[1735855878361,9.03932413,206.27,206.21,30.0]
[1735855878735,9.03932413,206.27,206.21,39.03932413]
[1735855879458,9.03932413,206.28,206.21,39.03932413]
[1735855882559,9.03932413,206.27,206.21,39.03932413]
[1735855883556,9.03932413,206.28,206.21,39.03932413]
[1735855884076,9.03932413,206.27,206.21,39.03932413]
[1735855884370,9.03932413,206.26,206.21,30.0]
[1735855885156,9.03932413,206.27,206.21,39.03932413]
[1735855885461,29.03932413,206.28,206.21,39.03932413]
[1735855885763,9.03932413,206.27,206.21,39.03932413]
[1735855888487,1.5208,206.33,206.24,30.0]
[1735855888676,9.03932413,206.32,206.25,9.03932413]
[1735855888840,12.116,206.34,206.25,9.03932413]
[1735855889041,9.03932413,206.33,206.26,9.03932413]
[1735855890556,9.03932413,206.33,206.27,30.0]
[1735855890855,9.03932413,206.33,206.27,39.03932413]
[1735855891649,9.03932413,206.36,206.31,30.0]
[1735855894672,12.1123,206.41,206.31,30.0]
[1735855894847,9.03932413,206.38,206.31,39.03932413]
[1735855896476,9.03932413,206.37,206.31,39.03932413]
[1735855897072,9.03932413,206.37,206.31,30.0]
[1735855899979,9.03932413,206.36,206.31,30.0]
[1735855900589,9.03932413,206.34,206.31,30.0]
[1735855901158,9.03932413,206.32,206.31,30.0]
[1735855901952,9.03932413,206.32,206.26,7.60151006]
[1735855902154,9.03932413,206.29,206.26,7.60151006]
[1735855902987,9.03932413,206.29,206.25,6.0333]
[1735855903994,9.03932413,206.3,206.25,6.0333]
[1735855907194,9.03932413,206.31,206.25,6.0333]
[1735855907479,9.03932413,206.3,206.25,6.0333]
[1735855908782,9.03932413,206.29,206.25,6.0333]
[1735855908992,9.03932413,206.3,206.25,6.0333]
[1735855909987,9.03932413,206.31,206.25,6.0333]
[1735855914999,12.116,206.34,206.25,6.0333]
[1735855915201,9.03932413,206.32,206.25,6.0333]
[1735855917403,12.116,206.34,206.26,23.902374]
[1735855917607,9.03932413,206.34,206.28,30.0]
[1735855921015,9.03932413,206.33,206.28,30.0]
[1735855921506,9.03932413,206.29,206.25,30.0]
[1735855921709,9.03932413,206.26,206.22,37.60151006]
[1735855923110,9.03932413,206.26,206.22,30.0]
[1735855923607,9.03932413,206.26,206.2,6.4537]
[1735855923803,9.03932413,206.24,206.19,30.0]
[1735855924002,9.03932413,206.23,206.19,30.0]
[1735855926702,9.03932413,206.24,206.19,30.0]
[1735855927212,9.03932413,206.26,206.19,39.03932413]
[1735855927718,29.03932413,206.27,206.2,9.03932413]
[1735855930191,0.12549,206.34,206.2,9.03932413]
[1735855930385,12.1165,206.33,206.23,39.03932413]
[1735855930581,9.03932413,206.3,206.23,39.03932413]
[1735855930781,9.03932413,206.31,206.26,30.0]
[1735855931181,9.03932413,206.32,206.26,30.0]
[1735855931613,9.03932413,206.31,206.26,30.0]
[1735855935413,9.03932413,206.3,206.26,30.0]
[1735855936094,9.03932413,206.31,206.26,30.0]
[1735855936811,9.03932413,206.32,206.26,30.0]
[1735855937614,9.03932413,206.29,206.26,30.0]
[1735855941214,9.03932413,206.3,206.26,30.0]
[1735855941919,12.1165,206.33,206.26,30.0]
[1735855942096,9.03932413,206.32,206.26,30.0]
[1735855942815,9.03932413,206.31,206.26,30.0]
[1735855944210,9.03932413,206.32,206.26,30.0]
[1735855946392,9.03932413,206.31,206.26,30.0]
[1735855947317,8.53932413,206.31,206.26,30.0]
[1735855947620,9.03932413,206.29,206.26,30.0]
[1735855952728,9.03932413,206.3,206.26,30.0]
[1735855953998,9.03932413,206.29,206.26,30.0]
[1735855954202,9.03932413,206.3,206.26,30.0]
[1735855956424,9.03932413,206.29,206.26,30.0]
[1735855957525,8.53932413,206.29,206.26,30.0]
[1735855958628,9.03932413,206.28,206.26,30.0]
[1735855962920,12.1165,206.33,206.26,30.0]
[1735855963122,9.03932413,206.28,206.26,30.0]
[1735855963634,9.03932413,206.29,206.26,30.0]
[1735855963810,9.03932413,206.28,206.26,30.0]
[1735855967436,9.03932413,206.27,206.22,173.933]
[1735855967640,9.03932413,206.24,206.21,7.60151006]
[1735855968219,9.03932413,206.24,206.2,7.60151006]
[1735855969133,48.27599652,206.3,206.19,37.60151006]
[1735855969134,9.03932413,206.23,206.19,37.60151006]
[1735855969944,9.03932413,206.23,206.19,30.0]
[1735855970316,9.03932413,206.21,206.18,7.60151006]
[1735855971443,9.03932413,206.2,206.17,7.60151006]
[1735855972054,9.03932413,206.21,206.17,7.60151006]
[1735855972237,9.03932413,206.21,206.16,37.60151006]
[1735855973446,9.03932413,206.2,206.16,37.60151006]
[1735855974233,9.03932413,206.19,206.16,30.0]
[1735855974645,9.03932413,206.2,206.16,30.0]
[1735855976039,9.03932413,206.19,206.16,30.0]
[1735855976858,9.03932413,206.18,206.16,30.0]
[1735855980451,9.03932413,206.19,206.16,30.0]
[1735855980652,9.03932413,206.21,206.16,30.0]
[1735855982135,9.03932413,206.2,206.16,30.0]
[1735855983358,9.03932413,206.19,206.16,30.0]
[1735855983746,12.121,206.26,206.16,30.0]
[1735855983747,9.03932413,206.17,206.16,30.0]
[1735855985960,9.03932413,206.18,206.16,30.0]
[1735855988959,9.03932413,206.19,206.16,30.0]
[1735855989345,9.03932413,206.2,206.16,30.0]
[1735855990273,9.03932413,206.19,206.16,30.0]
[1735855991288,9.03932413,206.18,206.16,30.0]
[1735855991570,20.0,206.23,206.16,30.0]
[1735855991779,12.121,206.26,206.16,39.03932413]
[1735855991942,9.03932413,206.24,206.17,9.03932413]
[1735855992377,9.03932413,206.23,206.16,39.03932413]
[1735855992580,9.03932413,206.22,206.16,30.0]
[1735855992974,9.03932413,206.21,206.16,30.0]
[1735855993162,9.03932413,206.19,206.16,30.0]
[1735855994279,12.121,206.26,206.16,30.0]
[1735855994280,9.03932413,206.18,206.16,30.0]
[1735855997582,9.03932413,206.19,206.16,30.0]
[1735855999166,20.0,206.23,206.16,30.0]
[1735855999353,9.03932413,206.2,206.16,30.0]
[1735855999553,9.03932413,206.19,206.16,30.0]
[1735856001768,9.03932413,206.18,206.11,30.0]
[1735856001978,9.03932413,206.13,206.09,7.60151006]
[1735856002870,9.03932413,206.13,206.08,30.0]
[1735856003063,9.03932413,206.15,206.08,39.03932413]
[1735856004474,9.03932413,206.16,206.09,9.03932413]
[1735856004775,9.03932413,206.15,206.08,39.03932413]
[1735856006165,9.03932413,206.16,206.11,30.0]
[1735856006477,9.03932413,206.18,206.11,39.03932413]
[1735856009180,1.5478,206.23,206.14,30.0]
[1735856009385,9.03932413,206.2,206.14,30.0]
[1735856010269,9.03932413,206.19,206.14,30.0]
[1735856011090,9.03932413,206.2,206.14,30.0]
[1735856014674,9.03932413,206.19,206.14,30.0]
[1735856014874,9.03932413,206.17,206.14,30.0]
[1735856016292,9.03932413,206.16,206.14,30.0]
[1735856016496,9.03932413,206.15,206.08,175.50151006]
[1735856016795,9.03932413,206.12,206.08,37.60151006]
[1735856017168,9.03932413,206.13,206.08,37.60151006]
[1735856017369,9.03932413,206.12,206.08,37.60151006]
[1735856017984,9.03932413,206.12,206.08,30.0]
[1735856019496,9.03932413,206.09,206.03,30.0]
[1735856019697,9.03932413,206.06,206.03,30.0]
[1735856020577,9.03932413,206.05,206.03,30.0]
[1735856022874,9.03932413,206.04,206.01,6.2731]
[1735856025300,9.03932413,206.02,205.97,30.0]
[1735856025480,9.03932413,206.0,205.97,30.0]
[1735856026388,9.03932413,205.99,205.97,30.0]
[1735856027288,9.03932413,205.98,205.94,30.0]
[1735856027911,9.03932413,205.99,205.94,30.0]
[1735856028604,9.03932413,205.98,205.94,30.0]
[1735856028985,9.03932413,205.99,205.94,30.0]
[1735856029687,9.03932413,205.98,205.94,30.0]
[1735856031813,9.03932413,205.99,205.94,30.0]
[1735856034789,9.03932413,205.96,205.94,30.0]
[1735856036090,9.03932413,205.97,205.94,30.0]
[1735856036712,9.03932413,205.95,205.9,30.0]
[1735856036890,9.03932413,205.93,205.9,30.0]
[1735856037391,9.03932413,205.94,205.92,20.0]
[1735856038332,9.03932413,205.93,205.9,30.0]
[1735856038662,9.03932413,205.92,205.9,30.0]
[1735856038925,9.03932413,205.93,205.9,30.0]
[1735856039605,9.03932413,205.94,205.9,30.0]
[1735856039931,9.03932413,205.95,205.9,30.0]
[1735856040338,9.03932413,205.93,205.9,30.0]
[1735856040627,9.03932413,205.95,205.9,30.0]
[1735856043721,1.5317,206.0,205.9,30.0]
[1735856043931,9.03932413,205.95,205.9,30.0]
[1735856044542,9.03932413,205.94,205.9,30.0]
[1735856046114,12.1336,206.04,205.95,30.0]
[1735856046313,9.03932413,205.98,205.92,36.4706]
[1735856046523,1.5458,206.06,205.92,30.0]
[1735856046524,9.03932413,205.96,205.92,30.0]
[1735856047408,9.03932413,205.97,205.92,30.0]
[1735856048519,9.03932413,205.96,205.92,30.0]
[1735856050610,9.03932413,205.97,205.92,30.0]
[1735856051114,12.1346,206.03,205.92,30.0]
[1735856051429,9.03932413,205.97,205.92,30.0]
[1735856052637,9.03932413,205.96,205.92,30.0]
[1735856053136,9.03932413,205.97,205.92,30.0]
[1735856055118,9.03932413,205.96,205.92,30.0]
[1735856055317,9.03932413,205.93,205.9,1.5368]
[1735856055646,9.03932413,205.93,205.89,30.0]
[1735856055843,36.15729652,206.0,205.89,30.0]
[1735856056165,9.03932413,205.93,205.89,30.0]
[1735856060175,9.03932413,205.94,205.89,30.0]
[1735856062669,9.03932413,205.94,205.9,23.776884]
[1735856062967,9.03932413,205.95,205.9,23.776884]
[1735856066278,9.03932413,205.96,205.9,23.776884]
[1735856067480,9.03932413,205.96,205.92,30.0]
[1735856070976,9.03932413,205.97,205.92,30.0]
[1735856071877,1.5291,206.0,205.92,30.0]
[1735856072261,9.03932413,205.98,205.92,30.0]
[1735856074263,9.03932413,205.97,205.92,30.0]
[1735856074591,9.03932413,205.98,205.92,30.0]
[1735856076459,1.5291,206.0,205.92,30.0]
[1735856076460,9.03932413,205.99,205.92,39.03932413]
[1735856076661,9.03932413,206.0,205.95,30.0]
[1735856077771,9.03932413,205.99,205.95,30.0]
[1735856081292,9.03932413,205.98,205.95,30.0]
[1735856081498,9.03932413,205.99,205.95,30.0]
[1735856081798,1.5159,206.05,205.96,23.902374]
[1735856081988,9.03932413,206.02,205.98,30.0]
[1735856085416,9.03932413,206.03,205.98,30.0]
[1735856093940,9.03932413,206.02,205.98,30.0]
[1735856100533,9.03932413,205.99,205.96,137.9]
[1735856100745,9.03932413,205.99,205.95,36.195]
[1735856102142,9.03932413,205.96,205.95,30.0]
[1735856102472,9.03932413,205.96,205.92,30.0]
[1735856104328,9.03932413,205.94,205.92,30.0]
[1735856104639,9.03932413,205.95,205.92,30.0]
[1735856104944,36.15729652,206.0,205.92,30.0]
[1735856105151,9.03932413,205.95,205.92,30.0]
[1735856106140,9.03932413,205.93,205.89,30.0]
[1735856106348,9.03932413,205.91,205.86,39.25801006]
[1735856106554,9.03932413,205.89,205.86,37.60151006]
[1735856106926,9.03932413,205.89,205.86,30.0]
[1735856107230,9.03932413,205.87,205.83,37.60151006]
[1735856107430,9.03932413,205.86,205.83,30.0]
[1735856107637,9.03932413,205.85,205.81,9.26101006]
[1735856108247,9.03932413,205.85,205.8,30.0]
[1735856108421,9.03932413,205.84,205.8,30.0]
[1735856109051,9.03932413,205.81,205.8,30.0]
[1735856109437,9.03932413,205.81,205.77,30.0]
[1735856109641,9.03932413,205.8,205.77,30.0]
[1735856111257,9.03932413,205.79,205.74,137.9]
[1735856111460,9.03932413,205.76,205.72,37.60151006]
[1735856111833,9.03932413,205.79,205.72,46.64083419]
[1735856112258,9.03932413,205.78,205.72,37.60151006]
[1735856112757,9.03932413,205.79,205.72,46.64083419]
[1735856112936,9.03932413,205.79,205.72,39.03932413]
[1735856113654,19.7835,205.89,205.76,30.0]
[1735856113877,9.03932413,205.86,205.79,39.03932413]
[1735856114762,9.03932413,205.87,205.82,30.0]
[1735856116175,9.03932413,205.86,205.82,30.0]
[1735856116372,9.03932413,205.86,205.79,176.93932413]
[1735856117153,9.03932413,205.86,205.82,30.0]
[1735856117348,1.5342,205.89,205.82,30.0]
[1735856117555,9.03932413,205.87,205.82,30.0]
[1735856118277,9.03932413,205.86,205.82,30.0]
[1735856118785,9.03932413,205.86,205.8,23.902374]
[1735856119481,9.03932413,205.84,205.79,30.0]
[1735856119683,9.03932413,205.85,205.79,30.0]
[1735856120281,9.03932413,205.83,205.76,40.69882413]
[1735856121297,9.03932413,205.83,205.76,31.6595]
[1735856121501,9.03932413,205.83,205.76,40.69882413]
[1735856121701,1.5342,205.89,205.79,30.0]
[1735856121702,9.03932413,205.84,205.79,30.0]
[1735856125280,9.03932413,205.83,205.79,20.0]
[1735856126705,9.03932413,205.8,205.76,30.0]
[1735856126874,0.25098,205.88,205.77,30.0]
[1735856127078,9.03932413,205.8,205.77,30.0]
[1735856127309,9.03932413,205.8,205.75,23.902374]
[1735856132107,9.03932413,205.8,205.74,167.9]
[1735856133094,9.03932413,205.8,205.74,30.0]
[1735856133405,9.03932413,205.78,205.71,58.90752413]
[1735856133605,9.03932413,205.78,205.71,51.19232413]
[1735856133905,9.03932413,205.78,205.71,30.0]
[1735856134110,10.65402413,205.8,205.74,30.0]
[1735856134815,9.03932413,205.81,205.74,30.0]
[1735856135807,9.03932413,205.81,205.77,30.0]
[1735856136114,9.03932413,205.83,205.77,30.0]
[1735856136483,9.03932413,205.83,205.75,9.03932413]
[1735856136806,9.03932413,205.81,205.74,30.0]
[1735856137703,9.03932413,205.79,205.73,137.9]
[1735856137900,9.03932413,205.79,205.71,39.03932413]
[1735856138203,9.03932413,205.75,205.69,9.03932413]
[1735856138415,9.03932413,205.73,205.68,30.0]
[1735856138781,9.03932413,205.73,205.66,9.03932413]
[1735856138981,1.6147,205.77,205.68,9.03932413]
[1735856139199,9.03932413,205.76,205.68,9.03932413]
[1735856139406,9.03932413,205.76,205.7,39.03932413]
[1735856139597,9.03932413,205.76,205.68,9.03932413]
[1735856140108,9.03932413,205.75,205.67,176.93932413]
[1735856140309,9.03932413,205.75,205.67,167.9]
[1735856140524,9.03932413,205.75,205.67,176.93932413]
[1735856140692,9.03932413,205.75,205.67,9.03932413]
[1735856141487,9.03932413,205.73,205.67,9.03932413]
[1735856142116,9.03932413,205.73,205.65,9.03932413]
[1735856142415,1.6147,205.77,205.64,30.0]
[1735856142416,9.03932413,205.71,205.64,30.0]
[1735856142598,9.03932413,205.7,205.64,30.0]
[1735856142795,1.6147,205.77,205.67,30.0]
[1735856142996,9.03932413,205.76,205.67,176.93932413]
[1735856143197,9.03932413,205.74,205.67,9.03932413]
[1735856143405,9.03932413,205.73,205.65,9.03932413]
[1735856143593,9.03932413,205.72,205.67,20.0]
[1735856143927,9.03932413,205.7,205.67,20.0]
[1735856144215,9.03932413,205.71,205.67,20.0]
[1735856144417,9.03932413,205.72,205.67,20.0]
[1735856144791,9.03932413,205.73,205.67,20.0]
[1735856145018,9.03932413,205.73,205.67,29.03932413]
[1735856145204,9.03932413,205.75,205.68,30.0]
[1735856146513,1.6147,205.77,205.69,9.03932413]
[1735856146815,6.3218,205.83,205.67,32.1549]
[1735856146816,9.03932413,205.79,205.72,9.03932413]
[1735856147624,9.03932413,205.77,205.71,30.0]
[1735856148117,1.6365,205.82,205.71,30.0]
[1735856148423,9.03932413,205.78,205.71,30.0]
[1735856152726,1.6365,205.82,205.74,30.0]
[1735856152916,10.67582413,205.82,205.74,39.03932413]
[1735856154520,9.03932413,205.8,205.74,30.0]
[1735856157825,10.67582413,205.82,205.74,30.0]
[1735856158715,9.03932413,205.82,205.74,30.0]
[1735856159323,9.03932413,205.82,205.75,9.03932413]
[1735856160234,9.03932413,205.81,205.74,39.03932413]
[1735856160423,9.03932413,205.8,205.74,30.0]
[1735856160919,9.03932413,205.81,205.74,30.0]
[1735856161123,9.03932413,205.81,205.73,159.09112413]
[1735856161124,9.03932413,205.82,205.77,30.0]
[1735856161419,36.15729652,205.9,205.77,45.28082413]
[1735856161740,9.03932413,205.84,205.77,45.28082413]
[1735856162735,9.03932413,205.85,205.81,30.0]
[1735856163037,9.03932413,205.86,205.81,30.0]
[1735856166944,9.03932413,205.84,205.81,30.0]
[1735856167324,9.03932413,205.82,205.77,36.2415]
[1735856167526,9.03932413,205.8,205.77,30.0]
[1735856168441,9.03932413,205.8,205.79,20.0]
[1735856169628,9.03932413,205.8,205.73,167.9]
[1735856169815,9.03932413,205.8,205.76,20.0]
[1735856170211,9.03932413,205.78,205.73,30.0]
[1735856174444,9.03932413,205.76,205.73,20.0]
[1735856176540,9.03932413,205.74,205.7,30.0]
[1735856176749,9.03932413,205.73,205.7,30.0]
[1735856177130,9.03932413,205.74,205.7,30.0]
[1735856177350,9.03932413,205.75,205.7,30.0]
[1735856178039,9.03932413,205.74,205.7,30.0]
[1735856191242,9.03932413,205.73,205.7,30.0]
[1735856194432,9.03932413,205.74,205.7,30.0]
[1735856197835,6.4268,205.81,205.7,30.0]
[1735856198043,9.03932413,205.78,205.71,9.03932413]
[1735856199459,9.03932413,205.77,205.7,39.03932413]
[1735856199661,9.03932413,205.77,205.7,30.0]
[1735856200686,9.03932413,205.75,205.7,30.0]
[1735856202882,9.03932413,205.76,205.7,30.0]
[1735856210585,9.03932413,205.77,205.7,39.03932413]
[1735856211598,9.03932413,205.77,205.7,30.0]
[1735856212992,9.03932413,205.75,205.7,30.0]
[1735856213284,9.03932413,205.74,205.7,30.0]
[1735856215502,9.03932413,205.75,205.7,30.0]
[1735856220601,9.03932413,205.81,205.73,30.0]
[1735856221315,9.03932413,205.81,205.73,39.03932413]
[1735856222302,7.9162,205.87,205.77,30.0]
[1735856222474,9.03932413,205.83,205.77,30.0]
[1735856223682,9.03932413,205.82,205.77,30.0]
[1735856224779,9.03932413,205.83,205.77,30.0]
[1735856226509,20.3496,205.92,205.8,30.0]
[1735856226679,9.03932413,205.86,205.8,30.0]
[1735856227506,9.03932413,205.87,205.83,30.0]
[1735856228601,9.03932413,205.86,205.83,30.0]
[1735856230009,9.03932413,205.87,205.83,30.0]